[Event "44th Chess Olympiad Women 2022"]
[Site "Chennai"]
[Date "2022.08.08"]
[Round "10.2"]
[White "Dzagnidze, Nana"]
[Black "Kashlinskaya, Alina"]
[Result "1/2-1/2"]
[WhiteElo "2531"]
[BlackElo "2505"]
[Annotator "RC"]
[PlyCount "94"]
[EventDate "2022.??.??"]
[TimeControl "60"]

1. d4 {[%emt 0:00:04]} Nf6 {[%emt 0:00:11]} 2. c4 {[%emt 0:00:05]} e6 {[%emt 0:
00:00]} 3. Nf3 {[%emt 0:00:09]} d5 {[%emt 0:00:09]} 4. Nc3 {[%emt 0:00:11]} Bb4
{[%emt 0:00:09]} 5. Qa4+ {[%emt 0:00:17]} Nc6 {[%emt 0:00:06]} 6. a3 {[%emt 0:
00:00]} Bxc3+ {[%emt 0:00:11]} 7. bxc3 {[%emt 0:00:02]} Bd7 {[%emt 0:04:15]} 8.
Qc2 {[%emt 0:06:32]} dxc4 {[%emt 0:18:34]} 9. e4 {[%emt 0:01:00]} Na5 {[%emt 0:
00:00]} 10. Bg5 {[%emt 0:10:19]} h6 {[%emt 0:02:48]} 11. Bh4 {[%emt 0:00:20]}
g5 {[%emt 0:07:26]} 12. Bg3 {[%emt 0:13:17]} Bc6 {[%emt 0:02:26]} 13. Nd2 {
[%emt 0:06:01]} Nb3 {[%emt 0:02:46]} 14. Nxb3 {[%emt 0:00:13]} cxb3 {[%emt 0:
00:00]} 15. Qxb3 {[%emt 0:00:07]} Nxe4 {[%emt 0:00:23]} 16. Be5 {[%emt 0:01:24]
} O-O {[%emt 0:18:38]} 17. f3 {[%emt 0:07:48]} Nd6 {[%emt 0:00:31]} 18. Bd3 {
[%emt 0:01:30]} f6 {[%emt 0:01:43]} 19. Bg3 {[%emt 0:04:02]} Kg7 {[%emt 0:00:
00]} 20. O-O {[%emt 0:15:45]} Qd7 {[%emt 0:02:05]} 21. Rfe1 {[%emt 0:01:55]}
Rae8 {[%emt 0:03:12]} 22. c4 {[%emt 0:04:09]} b6 {[%emt 0:06:12]} 23. Rac1 {
[%emt 0:05:39]} Nf5 {[%emt 0:01:55]} 24. Bxf5 {[%emt 0:02:10]} exf5 {[%emt 0:
00:00]} 25. d5 {[%emt 0:00:04]} Ba4 {[%emt 0:00:52]} 26. Qc3 {[%emt 0:01:27]}
Rxe1+ {[%emt 0:02:53]} 27. Rxe1 {[%emt 0:00:10]} f4 {[%emt 0:00:25]} 28. Bf2 {
[%emt 0:00:10]} Re8 {[%emt 0:00:24]} 29. Rxe8 {[%emt 0:02:14]} Qxe8 {[%emt 0:
00:00]} 30. c5 {[%emt 0:02:10]} Qe5 {[%emt 0:04:08]} 31. Bd4 {[%emt 0:05:34]}
Qxd5 {[%emt 0:00:37]} 32. cxb6 {[%emt 0:00:06]} cxb6 {[%emt 0:00:54]} 33. Bxf6+
{[%emt 0:00:08]} Kg6 {[%emt 0:01:55]} 34. Bd4 {[%emt 0:01:04]} Qb3 {[%emt 0:00:
00]} 35. Qxb3 {[%emt 0:00:46]} Bxb3 {[%emt 0:00:07]} 36. Kf2 {[%emt 0:00:07]}
h5 {[%emt 0:03:12]} 37. h3 {[%emt 0:01:49]} Kf5 {[%emt 0:04:24]} 38. Ke1 {
[%emt 0:00:18]} Bc4 {[%emt 0:01:11]} 39. Kf2 {[%emt 0:00:07]} Bd3 {[%emt 0:00:
00]} 40. Ke1 {[%emt 0:00:13]} Ke6 {[%emt 0:00:11]} 41. Kf2 {[%emt 0:30:06]} h4
{[%emt 0:16:01]} 42. Ke1 {[%emt 0:00:00]} Kf5 {[%emt 0:03:31]} 43. Kf2 {
[%emt 0:00:00]} Ke6 {[%emt 0:01:50]} 44. Ke1 {[%emt 0:00:00]} Bc4 {[%emt 0:00:
00]} 45. Kf2 {[%emt 0:00:00]} Bd5 {[%emt 0:00:03]} 46. Ke1 {[%emt 0:00:00]} Kf5
{[%emt 0:04:07]} 47. Ke2 {[%emt 0:00:00]} Bc4+ {[%emt 0:00:15]} 1/2-1/2

[Event "44th Chess Olympiad Women 2022"]
[Site "Chennai"]
[Date "2022.08.08"]
[Round "10.2"]
[White "Javakhishvili, Lela"]
[Black "Kiolbasa, Oliwia"]
[Result "1/2-1/2"]
[WhiteElo "2476"]
[BlackElo "2376"]
[Annotator "RC"]
[PlyCount "80"]
[EventDate "2022.??.??"]
[TimeControl "60"]

1. c4 {[%emt 0:00:05]} e6 {[%emt 0:00:12]} 2. g3 {[%emt 0:00:13]} d5 {[%emt 0:
00:00]} 3. Bg2 {[%emt 0:00:11]} Nf6 {[%emt 0:00:41]} 4. d4 {[%emt 0:01:07]} Be7
{[%emt 0:00:53]} 5. Nf3 {[%emt 0:00:26]} O-O {[%emt 0:00:14]} 6. O-O {[%emt 0:
00:00]} dxc4 {[%emt 0:00:24]} 7. Qa4 {[%emt 0:00:48]} a6 {[%emt 0:06:23]} 8.
Qxc4 {[%emt 0:00:08]} b5 {[%emt 0:00:20]} 9. Qc2 {[%emt 0:00:05]} Bb7 {[%emt 0:
00:00]} 10. Bd2 {[%emt 0:00:08]} Be4 {[%emt 0:08:21]} 11. Qc1 {[%emt 0:00:08]}
Qc8 {[%emt 0:02:17]} 12. Bg5 {[%emt 0:13:42]} Nbd7 {[%emt 0:11:06]} 13. Nbd2 {
[%emt 0:00:39]} Bb7 {[%emt 0:00:52]} 14. Nb3 {[%emt 0:05:51]} c5 {[%emt 0:00:
00]} 15. Bxf6 {[%emt 0:06:02]} gxf6 {[%emt 0:13:23]} 16. dxc5 {[%emt 0:15:43]}
Nxc5 {[%emt 0:00:57]} 17. Na5 {[%emt 0:00:21]} Bd5 {[%emt 0:02:35]} 18. Nd4 {
[%emt 0:00:56]} Bxg2 {[%emt 0:06:52]} 19. Kxg2 {[%emt 0:00:07]} Re8 {[%emt 0:
00:00]} 20. Rd1 {[%emt 0:08:29]} Bf8 {[%emt 0:03:37]} 21. Qe3 {[%emt 0:01:47]}
e5 {[%emt 0:06:39]} 22. Ndc6 {[%emt 0:03:04]} Qf5 {[%emt 0:03:26]} 23. Rac1 {
[%emt 0:09:17]} Ne4 {[%emt 0:00:20]} 24. Qf3 {[%emt 0:06:42]} Qxf3+ {[%emt 0:
00:00]} 25. Kxf3 {[%emt 0:01:30]} f5 {[%emt 0:01:35]} 26. Rd5 {[%emt 0:03:37]}
Rac8 {[%emt 0:02:04]} 27. Nb3 {[%emt 0:05:32]} f6 {[%emt 0:01:20]} 28. Kg2 {
[%emt 0:04:50]} Nd6 {[%emt 0:02:37]} 29. Nba5 {[%emt 0:03:55]} Nc4 {[%emt 0:00:
00]} 30. Rb1 {[%emt 0:00:21]} Re6 {[%emt 0:03:50]} 31. Nxc4 {[%emt 0:00:59]}
bxc4 {[%emt 0:00:27]} 32. Na5 {[%emt 0:00:07]} Rb6 {[%emt 0:00:22]} 33. Rc1 {
[%emt 0:07:06]} Rb5 {[%emt 0:02:26]} 34. Rxb5 {[%emt 0:00:03]} axb5 {[%emt 0:
00:00]} 35. a3 {[%emt 0:00:03]} Ra8 {[%emt 0:01:38]} 36. Nc6 {[%emt 0:00:06]}
Ra6 {[%emt 0:00:06]} 37. Nb8 {[%emt 0:00:58]} Rb6 {[%emt 0:03:36]} 38. Nd7 {
[%emt 0:00:07]} Rd6 {[%emt 0:00:02]} 39. Nxf8 {[%emt 0:00:20]} Kxf8 {[%emt 0:
00:00]} 40. a4 {[%emt 0:01:18]} bxa4 {[%emt 0:02:08]} 1/2-1/2

[Event "44th Chess Olympiad Women 2022"]
[Site "Chennai"]
[Date "2022.08.08"]
[Round "10.2"]
[White "Malicka, Maria"]
[Black "Melia, Salome"]
[Result "1-0"]
[WhiteElo "2393"]
[BlackElo "2384"]
[Annotator "RC"]
[PlyCount "93"]
[EventDate "2022.??.??"]
[TimeControl "60"]

1. e4 {[%emt 0:00:01]} c5 {[%emt 0:00:06]} 2. Nf3 {[%emt 0:00:04]} e6 {[%emt 0:
00:00]} 3. d4 {[%emt 0:00:08]} cxd4 {[%emt 0:00:04]} 4. Nxd4 {[%emt 0:00:03]}
Nf6 {[%emt 0:00:12]} 5. Nc3 {[%emt 0:00:13]} Nc6 {[%emt 0:00:15]} 6. Nxc6 {
[%emt 0:00:47]} bxc6 {[%emt 0:00:12]} 7. e5 {[%emt 0:00:03]} Nd5 {[%emt 0:00:
00]} 8. Ne4 {[%emt 0:00:07]} Qc7 {[%emt 0:00:40]} 9. f4 {[%emt 0:00:14]} Qb6 {
[%emt 0:00:16]} 10. c4 {[%emt 0:06:26]} Bb4+ {[%emt 0:00:10]} 11. Ke2 {[%emt 0:
00:00]} Ba6 {[%emt 0:01:38]} 12. Kf3 {[%emt 0:06:41]} f5 {[%emt 0:00:12]} 13.
Nf2 {[%emt 0:08:44]} Ne7 {[%emt 0:03:50]} 14. Be3 {[%emt 0:08:01]} Bc5 {
[%emt 0:02:39]} 15. Bxc5 {[%emt 0:00:40]} Qxc5 {[%emt 0:00:02]} 16. Qd6 {
[%emt 0:05:08]} Qa5 {[%emt 0:04:03]} 17. h4 {[%emt 0:10:00]} c5 {[%emt 0:03:51]
} 18. Be2 {[%emt 0:05:15]} Rd8 {[%emt 0:19:18]} 19. Rhd1 {[%emt 0:09:49]} Nc8 {
[%emt 0:16:21]} 20. Qd2 {[%emt 0:01:19]} Qc7 {[%emt 0:07:10]} 21. Kg3 {[%emt 0:
00:00]} O-O {[%emt 0:00:45]} 22. Qe3 {[%emt 0:00:42]} d6 {[%emt 0:02:17]} 23.
b3 {[%emt 0:01:48]} dxe5 {[%emt 0:09:24]} 24. Qxe5 {[%emt 0:00:05]} Qxe5 {
[%emt 0:04:46]} 25. fxe5 {[%emt 0:00:01]} Nb6 {[%emt 0:14:29]} 26. Nd3 {
[%emt 0:07:08]} Rc8 {[%emt 0:00:05]} 27. Nf4 {[%emt 0:04:32]} Kf7 {[%emt 0:00:
00]} 28. Rd6 {[%emt 0:00:44]} Rfe8 {[%emt 0:00:21]} 29. Bf3 {[%emt 0:00:52]}
Rc7 {[%emt 0:03:13]} 30. Rad1 {[%emt 0:04:44]} Bb7 {[%emt 0:01:22]} 31. Bxb7 {
[%emt 0:02:27]} Rxb7 {[%emt 0:00:01]} 32. Rc6 {[%emt 0:00:10]} Nd7 {[%emt 0:00:
00]} 33. Nd3 {[%emt 0:00:06]} Reb8 {[%emt 0:04:32]} 34. Nxc5 {[%emt 0:02:46]}
Nxc5 {[%emt 0:00:48]} 35. Rxc5 {[%emt 0:00:05]} Ke7 {[%emt 0:00:33]} 36. Rc6 {
[%emt 0:01:54]} Rd7 {[%emt 0:00:23]} 37. Rxd7+ {[%emt 0:03:45]} Kxd7 {[%emt 0:
00:00]} 38. Rd6+ {[%emt 0:00:04]} Ke7 {[%emt 0:00:05]} 39. Kf4 {[%emt 0:00:13]}
Rb7 {[%emt 0:00:57]} 40. Ke3 {[%emt 0:00:32]} g6 {[%emt 0:00:38]} 41. Kd3 {
[%emt 0:36:50]} h6 {[%emt 0:01:25]} 42. c5 {[%emt 0:00:00]} g5 {[%emt 0:02:36]}
43. hxg5 {[%emt 0:00:00]} hxg5 {[%emt 0:00:03]} 44. c6 {[%emt 0:00:00]} Rb5 {
[%emt 0:02:32]} 45. Kd4 {[%emt 0:00:00]} Rb4+ {[%emt 0:01:49]} 46. Kc5 {
[%emt 0:00:00]} Re4 {[%emt 0:00:05]} 47. Rd7+ {[%emt 0:00:00]} 1-0

[Event "44th Chess Olympiad Women 2022"]
[Site "Chennai"]
[Date "2022.08.08"]
[Round "10.2"]
[White "Socko, Monika"]
[Black "Batsiashvili, Nino"]
[Result "0-1"]
[WhiteElo "2416"]
[BlackElo "2466"]
[Annotator "RC"]
[PlyCount "167"]
[EventDate "2022.??.??"]
[TimeControl "60"]

1. d4 {[%emt 0:00:03]} Nf6 {[%emt 0:00:04]} 2. c4 {[%emt 0:00:12]} e6 {[%emt 0:
00:00]} 3. Nf3 {[%emt 0:00:04]} c5 {[%emt 0:00:06]} 4. d5 {[%emt 0:01:05]} exd5
{[%emt 0:00:06]} 5. cxd5 {[%emt 0:00:04]} d6 {[%emt 0:00:11]} 6. Nc3 {[%emt 0:
00:00]} g6 {[%emt 0:00:14]} 7. h3 {[%emt 0:01:24]} Bg7 {[%emt 0:00:34]} 8. Bf4
{[%emt 0:00:17]} O-O {[%emt 0:04:20]} 9. e3 {[%emt 0:00:13]} a6 {[%emt 0:02:15]
} 10. a4 {[%emt 0:00:05]} Ne8 {[%emt 0:00:03]} 11. Be2 {[%emt 0:01:16]} Nd7 {
[%emt 0:00:09]} 12. O-O {[%emt 0:01:19]} Ne5 {[%emt 0:00:16]} 13. Nd2 {[%emt 0:
00:00]} f5 {[%emt 0:04:49]} 14. Bh2 {[%emt 0:02:11]} g5 {[%emt 0:07:20]} 15. f4
{[%emt 0:05:15]} gxf4 {[%emt 0:00:05]} 16. exf4 {[%emt 0:01:05]} Ng6 {[%emt 0:
00:00]} 17. Nc4 {[%emt 0:05:16]} Bd7 {[%emt 0:04:19]} 18. a5 {[%emt 0:09:01]}
Bb5 {[%emt 0:04:01]} 19. Nb6 {[%emt 0:04:52]} Bxe2 {[%emt 0:01:17]} 20. Qxe2 {
[%emt 0:00:06]} Rb8 {[%emt 0:00:05]} 21. Rae1 {[%emt 0:02:21]} Nc7 {[%emt 0:00:
00]} 22. Kh1 {[%emt 0:01:36]} Rf7 {[%emt 0:06:44]} 23. g4 {[%emt 0:09:53]} Qh4
{[%emt 0:06:10]} 24. gxf5 {[%emt 0:06:48]} Rxf5 {[%emt 0:21:57]} 25. Qg4 {
[%emt 0:00:46]} Rbf8 {[%emt 0:03:19]} 26. Ne4 {[%emt 0:10:43]} Nb5 {[%emt 0:00:
00]} 27. Ng5 {[%emt 0:10:26]} h5 {[%emt 0:01:38]} 28. Qxh4 {[%emt 0:03:12]}
Nxh4 {[%emt 0:00:01]} 29. Ne6 {[%emt 0:00:08]} R8f7 {[%emt 0:01:52]} 30. Nc8 {
[%emt 0:02:07]} Rxd5 {[%emt 0:03:43]} 31. Ng5 {[%emt 0:01:07]} Nf5 {[%emt 0:00:
00]} 32. Nxf7 {[%emt 0:01:19]} Kxf7 {[%emt 0:00:01]} 33. Re2 {[%emt 0:01:22]}
Rd3 {[%emt 0:00:17]} 34. Rg1 {[%emt 0:01:00]} Rxh3 {[%emt 0:03:47]} 35. Reg2 {
[%emt 0:05:00]} Bd4 {[%emt 0:01:59]} 36. Re1 {[%emt 0:01:10]} Bf6 {[%emt 0:00:
00]} 37. Rd2 {[%emt 0:01:39]} Nbd4 {[%emt 0:00:43]} 38. Red1 {[%emt 0:00:34]}
h4 {[%emt 0:01:47]} 39. Rd3 {[%emt 0:02:33]} Rxd3 {[%emt 0:02:10]} 40. Rxd3 {
[%emt 0:00:02]} Ke6 {[%emt 0:01:33]} 41. Rd1 {[%emt 0:34:40]} Nb3 {[%emt 0:00:
00]} 42. Re1+ {[%emt 0:02:29]} Kf7 {[%emt 0:00:00]} 43. Rd1 {[%emt 0:00:00]}
Ke6 {[%emt 0:00:00]} 44. Re1+ {[%emt 0:00:00]} Kd7 {[%emt 0:00:00]} 45. Nb6+ {
[%emt 0:00:00]} Kc6 {[%emt 0:00:00]} 46. Nc4 {[%emt 0:00:00]} Nbd4 {[%emt 0:00:
00]} 47. Bg1 {[%emt 0:00:00]} Nf3 {[%emt 0:00:00]} 48. Re6 {[%emt 0:00:00]} h3
{[%emt 0:00:00]} 49. Bh2 {[%emt 0:00:00]} Bd4 {[%emt 0:00:00]} 50. Rg6 {
[%emt 0:00:00]} N3h4 {[%emt 0:00:00]} 51. Rg4 {[%emt 0:00:00]} Nf3 {[%emt 0:00:
00]} 52. Rg6 {[%emt 0:00:00]} Kd5 {[%emt 0:00:32]} 53. b3 {[%emt 0:00:00]} Bc3
{[%emt 0:00:47]} 54. Bg1 {[%emt 0:00:00]} N3h4 {[%emt 0:00:23]} 55. Rg4 {
[%emt 0:00:00]} Be1 {[%emt 0:01:16]} 56. Kh2 {[%emt 0:00:00]} Ke4 {[%emt 0:00:
00]} 57. Kxh3 {[%emt 0:00:00]} Nf3 {[%emt 0:01:09]} 58. Rg6 {[%emt 0:00:00]} d5
{[%emt 0:00:55]} 59. Ne5 {[%emt 0:02:35]} Nxg1+ {[%emt 0:03:30]} 60. Rxg1 {
[%emt 0:00:23]} Bxa5 {[%emt 0:00:01]} 61. Nd7 {[%emt 0:02:07]} Bb4 {[%emt 0:00:
00]} 62. Nf6+ {[%emt 0:00:59]} Kxf4 {[%emt 0:00:08]} 63. Nxd5+ {[%emt 0:00:15]}
Ke5 {[%emt 0:00:11]} 64. Nb6 {[%emt 0:00:26]} Nd4 {[%emt 0:01:18]} 65. Rg7 {
[%emt 0:02:46]} Nxb3 {[%emt 0:00:06]} 66. Rxb7 {[%emt 0:00:01]} Kd4 {[%emt 0:
00:00]} 67. Kg3 {[%emt 0:00:31]} c4 {[%emt 0:00:45]} 68. Na4 {[%emt 0:01:01]}
a5 {[%emt 0:00:21]} 69. Rd7+ {[%emt 0:00:54]} Ke4 {[%emt 0:00:42]} 70. Kf2 {
[%emt 0:01:27]} c3 {[%emt 0:00:12]} 71. Nxc3+ {[%emt 0:00:27]} Bxc3 {[%emt 0:
00:00]} 72. Ke2 {[%emt 0:00:04]} Nd4+ {[%emt 0:00:31]} 73. Kd1 {[%emt 0:00:00]}
Kd3 {[%emt 0:00:07]} 74. Kc1 {[%emt 0:00:25]} Kc4 {[%emt 0:00:08]} 75. Rb7 {
[%emt 0:00:44]} Bb4 {[%emt 0:00:12]} 76. Kb2 {[%emt 0:00:07]} Nb5 {[%emt 0:00:
00]} 77. Rh7 {[%emt 0:01:08]} Bc5 {[%emt 0:00:27]} 78. Rh4+ {[%emt 0:01:06]}
Bd4+ {[%emt 0:00:07]} 79. Ka2 {[%emt 0:00:07]} Kb4 {[%emt 0:01:03]} 80. Rg4 {
[%emt 0:00:06]} a4 {[%emt 0:00:51]} 81. Rh4 {[%emt 0:00:12]} a3 {[%emt 0:00:31]
} 82. Rg4 {[%emt 0:00:09]} Nc3+ {[%emt 0:00:11]} 83. Ka1 {[%emt 0:00:01]} Ne2+
{[%emt 0:00:19]} 84. Kb1 {[%emt 0:04:10]} 0-1

[Event "44th Chess Olympiad Women 2022"]
[Site "Chennai"]
[Date "2022.08.08"]
[Round "10.3"]
[White "Buksa, Nataliya"]
[Black "Schneider, Jana"]
[Result "1/2-1/2"]
[WhiteElo "2401"]
[BlackElo "2342"]
[Annotator "RC"]
[PlyCount "77"]
[EventDate "2022.??.??"]
[TimeControl "60"]

1. e4 {[%emt 0:00:03]} e5 {[%emt 0:00:15]} 2. Nf3 {[%emt 0:00:04]} Nc6 {
[%emt 0:00:07]} 3. Bb5 {[%emt 0:00:05]} a6 {[%emt 0:00:08]} 4. Ba4 {[%emt 0:00:
00]} Nf6 {[%emt 0:00:10]} 5. O-O {[%emt 0:00:06]} Bc5 {[%emt 0:00:21]} 6. c3 {
[%emt 0:01:12]} O-O {[%emt 0:00:27]} 7. d4 {[%emt 0:02:32]} Ba7 {[%emt 0:00:14]
} 8. Re1 {[%emt 0:13:13]} d6 {[%emt 0:02:24]} 9. h3 {[%emt 0:01:42]} Bd7 {
[%emt 0:03:28]} 10. Bg5 {[%emt 0:09:55]} Qe7 {[%emt 0:13:44]} 11. d5 {[%emt 0:
00:00]} Nb8 {[%emt 0:01:14]} 12. Bxd7 {[%emt 0:00:47]} Nbxd7 {[%emt 0:00:20]}
13. Nbd2 {[%emt 0:00:08]} h6 {[%emt 0:08:31]} 14. Be3 {[%emt 0:00:41]} Bxe3 {
[%emt 0:02:50]} 15. fxe3 {[%emt 0:01:04]} Nh7 {[%emt 0:02:51]} 16. Rf1 {
[%emt 0:01:35]} f5 {[%emt 0:01:34]} 17. exf5 {[%emt 0:00:52]} Rxf5 {[%emt 0:00:
00]} 18. Ne4 {[%emt 0:00:10]} Rf7 {[%emt 0:05:38]} 19. Qd3 {[%emt 0:05:52]}
Raf8 {[%emt 0:05:09]} 20. Nfd2 {[%emt 0:02:44]} Qh4 {[%emt 0:07:57]} 21. Rxf7 {
[%emt 0:12:03]} Rxf7 {[%emt 0:00:09]} 22. Rf1 {[%emt 0:00:01]} Rxf1+ {[%emt 0:
00:00]} 23. Qxf1 {[%emt 0:01:18]} Nhf6 {[%emt 0:02:00]} 24. g3 {[%emt 0:02:48]}
Qh5 {[%emt 0:00:46]} 25. c4 {[%emt 0:00:21]} Qg6 {[%emt 0:03:36]} 26. Qf3 {
[%emt 0:00:46]} Nxe4 {[%emt 0:01:32]} 27. Nxe4 {[%emt 0:00:04]} Nf6 {[%emt 0:
00:00]} 28. Nxf6+ {[%emt 0:00:12]} gxf6 {[%emt 0:01:14]} 29. e4 {[%emt 0:00:03]
} Qg5 {[%emt 0:00:32]} 30. h4 {[%emt 0:00:39]} Qc1+ {[%emt 0:01:13]} 31. Kh2 {
[%emt 0:00:18]} Qxc4 {[%emt 0:05:47]} 32. Kh3 {[%emt 0:02:43]} Kg7 {[%emt 0:00:
00]} 33. h5 {[%emt 0:04:14]} Qc1 {[%emt 0:01:16]} 34. Qg4+ {[%emt 0:00:11]} Kf8
{[%emt 0:01:16]} 35. Qc8+ {[%emt 0:00:19]} Kg7 {[%emt 0:00:23]} 36. Qd7+ {
[%emt 0:00:23]} Kf8 {[%emt 0:00:12]} 37. Qc8+ {[%emt 0:03:09]} Kg7 {[%emt 0:00:
00]} 38. Qg4+ {[%emt 0:00:05]} Kf8 {[%emt 0:00:05]} 39. Qc8+ {[%emt 0:00:44]}
1/2-1/2

[Event "44th Chess Olympiad Women 2022"]
[Site "Chennai"]
[Date "2022.08.08"]
[Round "10.3"]
[White "Muzychuk, Anna"]
[Black "Heinemann, Josefine"]
[Result "1/2-1/2"]
[WhiteElo "2529"]
[BlackElo "2321"]
[Annotator "RC"]
[PlyCount "151"]
[EventDate "2022.??.??"]
[TimeControl "60"]

1. e4 {[%emt 0:00:02]} e5 {[%emt 0:00:06]} 2. Nf3 {[%emt 0:00:06]} Nc6 {
[%emt 0:00:05]} 3. Bc4 {[%emt 0:00:10]} Bc5 {[%emt 0:00:15]} 4. d3 {[%emt 0:00:
00]} Nf6 {[%emt 0:00:10]} 5. Nc3 {[%emt 0:00:15]} d6 {[%emt 0:00:52]} 6. Na4 {
[%emt 0:01:54]} Bb6 {[%emt 0:00:12]} 7. a3 {[%emt 0:00:28]} O-O {[%emt 0:02:53]
} 8. c3 {[%emt 0:01:42]} Ne7 {[%emt 0:05:58]} 9. O-O {[%emt 0:01:11]} Ng6 {
[%emt 0:01:20]} 10. Re1 {[%emt 0:05:24]} h6 {[%emt 0:05:09]} 11. Nxb6 {[%emt 0:
00:00]} axb6 {[%emt 0:00:17]} 12. Bb3 {[%emt 0:00:51]} Re8 {[%emt 0:05:28]} 13.
h3 {[%emt 0:10:52]} Be6 {[%emt 0:06:43]} 14. Bc2 {[%emt 0:00:39]} Nh7 {[%emt 0:
00:00]} 15. d4 {[%emt 0:07:10]} Qf6 {[%emt 0:03:44]} 16. Nh2 {[%emt 0:08:06]}
Rad8 {[%emt 0:09:59]} 17. Be3 {[%emt 0:03:06]} Ng5 {[%emt 0:11:01]} 18. a4 {
[%emt 0:14:03]} Nf4 {[%emt 0:05:14]} 19. Ng4 {[%emt 0:05:19]} Bxg4 {[%emt 0:00:
00]} 20. Qxg4 {[%emt 0:01:01]} g6 {[%emt 0:09:43]} 21. h4 {[%emt 0:03:26]} Nh7
{[%emt 0:00:32]} 22. g3 {[%emt 0:03:26]} h5 {[%emt 0:00:33]} 23. Qf3 {[%emt 0:
00:00]} Ne6 {[%emt 0:00:20]} 24. Qxf6 {[%emt 0:05:52]} Nxf6 {[%emt 0:00:07]}
25. dxe5 {[%emt 0:02:25]} dxe5 {[%emt 0:00:07]} 26. f3 {[%emt 0:00:12]} Ra8 {
[%emt 0:02:37]} 27. Kf2 {[%emt 0:00:42]} Kf8 {[%emt 0:02:19]} 28. Ra3 {[%emt 0:
00:00]} Ke7 {[%emt 0:03:42]} 29. Rea1 {[%emt 0:00:07]} Red8 {[%emt 0:00:26]}
30. Ke2 {[%emt 0:01:49]} Ne8 {[%emt 0:02:04]} 31. a5 {[%emt 0:06:01]} Rxa5 {
[%emt 0:02:41]} 32. Rxa5 {[%emt 0:00:04]} bxa5 {[%emt 0:00:03]} 33. Rxa5 {
[%emt 0:00:08]} f6 {[%emt 0:00:10]} 34. Ra7 {[%emt 0:05:19]} Nd6 {[%emt 0:00:
00]} 35. Bb3 {[%emt 0:00:03]} Rb8 {[%emt 0:02:08]} 36. Bd5 {[%emt 0:00:22]} Kd7
{[%emt 0:02:32]} 37. Ra1 {[%emt 0:00:53]} Ke7 {[%emt 0:01:45]} 38. Rg1 {
[%emt 0:02:02]} Rh8 {[%emt 0:04:12]} 39. Ra1 {[%emt 0:01:01]} Rb8 {[%emt 0:00:
00]} 40. Bb3 {[%emt 0:01:00]} Nf7 {[%emt 0:02:01]} 41. Bc2 {[%emt 0:04:32]} Nd6
{[%emt 0:02:48]} 42. Bd3 {[%emt 0:01:59]} b6 {[%emt 0:04:31]} 43. b4 {[%emt 0:
00:00]} Rd8 {[%emt 0:02:22]} 44. Ra7 {[%emt 0:02:20]} Nc8 {[%emt 0:00:42]} 45.
Ra2 {[%emt 0:02:24]} Nd6 {[%emt 0:00:04]} 46. Ra1 {[%emt 0:00:17]} Rb8 {
[%emt 0:00:40]} 47. Bf2 {[%emt 0:02:57]} Rd8 {[%emt 0:01:25]} 48. Ra7 {[%emt 0:
00:00]} Nc8 {[%emt 0:00:13]} 49. Ra8 {[%emt 0:01:02]} Nd6 {[%emt 0:00:48]} 50.
Rxd8 {[%emt 0:00:06]} Kxd8 {[%emt 0:00:34]} 51. Bc2 {[%emt 0:00:18]} Ke7 {
[%emt 0:01:55]} 52. Bb3 {[%emt 0:00:13]} Nf8 {[%emt 0:01:24]} 53. Be3 {[%emt 0:
00:00]} Ne6 {[%emt 0:00:47]} 54. Bd5 {[%emt 0:01:16]} Kd7 {[%emt 0:03:02]} 55.
Kd3 {[%emt 0:01:06]} Nc8 {[%emt 0:03:42]} 56. f4 {[%emt 0:01:45]} Nd6 {[%emt 0:
00:00]} 57. fxe5 {[%emt 0:01:41]} fxe5 {[%emt 0:00:05]} 58. Bb3 {[%emt 0:00:26]
} Ke7 {[%emt 0:01:12]} 59. Ba4 {[%emt 0:02:11]} Kf6 {[%emt 0:01:21]} 60. Bc6 {
[%emt 0:01:12]} Ke7 {[%emt 0:04:09]} 61. c4 {[%emt 0:00:58]} Nf7 {[%emt 0:00:
00]} 62. c5 {[%emt 0:06:13]} bxc5 {[%emt 0:00:03]} 63. bxc5 {[%emt 0:00:09]}
Nfd8 {[%emt 0:00:22]} 64. Ba4 {[%emt 0:00:12]} c6 {[%emt 0:00:29]} 65. Kc4 {
[%emt 0:00:16]} Kd7 {[%emt 0:01:00]} 66. Bd1 {[%emt 0:00:25]} Nb7 {[%emt 0:00:
00]} 67. g4 {[%emt 0:00:37]} hxg4 {[%emt 0:00:05]} 68. Bxg4 {[%emt 0:00:03]}
Ke7 {[%emt 0:00:28]} 69. Bxe6 {[%emt 0:02:05]} Kxe6 {[%emt 0:00:05]} 70. Bg5 {
[%emt 0:00:55]} Kf7 {[%emt 0:00:35]} 71. Kb4 {[%emt 0:00:36]} Ke6 {[%emt 0:00:
00]} 72. Bh6 {[%emt 0:00:15]} Kf7 {[%emt 0:00:10]} 73. Kc4 {[%emt 0:00:13]}
Na5+ {[%emt 0:00:08]} 74. Kc3 {[%emt 0:00:07]} Nb7 {[%emt 0:00:12]} 75. Kb4 {
[%emt 0:00:15]} Kf6 {[%emt 0:00:08]} 76. Bg5+ {[%emt 0:01:46]} 1/2-1/2

[Event "44th Chess Olympiad Women 2022"]
[Site "Chennai"]
[Date "2022.08.08"]
[Round "10.3"]
[White "Paehtz, Elisabeth"]
[Black "Muzychuk, Mariya"]
[Result "1/2-1/2"]
[WhiteElo "2484"]
[BlackElo "2540"]
[Annotator "RC"]
[PlyCount "96"]
[EventDate "2022.??.??"]
[TimeControl "60"]

1. d4 {[%emt 0:00:01]} Nf6 {[%emt 0:00:06]} 2. c4 {[%emt 0:00:04]} e6 {[%emt 0:
00:00]} 3. Nf3 {[%emt 0:00:06]} d5 {[%emt 0:00:23]} 4. g3 {[%emt 0:00:03]} Bb4+
{[%emt 0:02:31]} 5. Bd2 {[%emt 0:00:06]} Be7 {[%emt 0:00:20]} 6. Bg2 {[%emt 0:
00:00]} O-O {[%emt 0:00:07]} 7. O-O {[%emt 0:00:11]} c6 {[%emt 0:00:36]} 8. Qc2
{[%emt 0:00:04]} b6 {[%emt 0:00:36]} 9. Ne5 {[%emt 0:02:16]} Bb7 {[%emt 0:00:
00]} 10. cxd5 {[%emt 0:01:08]} cxd5 {[%emt 0:16:27]} 11. Rc1 {[%emt 0:00:05]}
Bd6 {[%emt 0:00:55]} 12. Nc3 {[%emt 0:23:24]} Nc6 {[%emt 0:10:57]} 13. Nxc6 {
[%emt 0:04:32]} Bxc6 {[%emt 0:00:04]} 14. Qd3 {[%emt 0:17:56]} Qd7 {[%emt 0:00:
00]} 15. Bg5 {[%emt 0:04:49]} Be7 {[%emt 0:01:22]} 16. a4 {[%emt 0:12:10]} h6 {
[%emt 0:02:19]} 17. Bxf6 {[%emt 0:03:40]} Bxf6 {[%emt 0:00:05]} 18. Rc2 {
[%emt 0:04:01]} Be7 {[%emt 0:07:36]} 19. e3 {[%emt 0:03:38]} a6 {[%emt 0:05:22]
} 20. Bf1 {[%emt 0:00:11]} Rfc8 {[%emt 0:01:39]} 21. Rac1 {[%emt 0:01:36]} Bb7
{[%emt 0:00:20]} 22. b3 {[%emt 0:00:46]} Rc6 {[%emt 0:04:50]} 23. Nb1 {[%emt 0:
00:00]} Rac8 {[%emt 0:00:51]} 24. Rxc6 {[%emt 0:00:24]} Rxc6 {[%emt 0:00:05]}
25. Rxc6 {[%emt 0:00:07]} Qxc6 {[%emt 0:00:04]} 26. Qc3 {[%emt 0:01:17]} Qxc3 {
[%emt 0:01:48]} 27. Nxc3 {[%emt 0:00:04]} Bb4 {[%emt 0:04:33]} 28. Na2 {
[%emt 0:00:07]} Bd6 {[%emt 0:01:20]} 29. f4 {[%emt 0:05:18]} f6 {[%emt 0:00:33]
} 30. Kf2 {[%emt 0:01:30]} Kf7 {[%emt 0:00:49]} 31. Nc3 {[%emt 0:01:40]} Bb4 {
[%emt 0:05:21]} 32. Na2 {[%emt 0:00:04]} Ba3 {[%emt 0:00:48]} 33. Ke1 {[%emt 0:
00:00]} e5 {[%emt 0:04:59]} 34. fxe5 {[%emt 0:01:10]} fxe5 {[%emt 0:00:06]} 35.
Kd2 {[%emt 0:00:18]} Bd6 {[%emt 0:03:22]} 36. Nc3 {[%emt 0:01:11]} e4 {[%emt 0:
00:00]} 37. Ke2 {[%emt 0:04:58]} g5 {[%emt 0:01:59]} 38. Kf2 {[%emt 0:01:39]}
Kf6 {[%emt 0:04:51]} 39. Na2 {[%emt 0:03:15]} Kf5 {[%emt 0:02:53]} 40. Bh3+ {
[%emt 0:00:23]} g4 {[%emt 0:03:26]} 41. Bf1 {[%emt 0:30:04]} h5 {[%emt 0:30:15]
} 42. b4 {[%emt 0:01:59]} h4 {[%emt 0:06:13]} 43. b5 {[%emt 0:00:11]} a5 {
[%emt 0:01:53]} 44. Nc3 {[%emt 0:00:32]} Kg5 {[%emt 0:01:32]} 45. Ne2 {[%emt 0:
00:00]} Bc8 {[%emt 0:00:34]} 46. Nc3 {[%emt 0:00:00]} Bb7 {[%emt 0:00:00]} 47.
Ne2 {[%emt 0:00:00]} Bc8 {[%emt 0:00:00]} 48. Nc3 {[%emt 0:00:00]} Bb7 {
[%emt 0:00:00]} 1/2-1/2